bitfinex-derivatives/quotes_ETHF0:USTF0_20250210
["timestamp","ask_amount","ask_price","bid_price","bid_amount"]
[1739228272623,3.2078,2655.7,2655.2,0.00564355]
[1739228278117,3.2078,2655.7,2655.2,0.61334355]
[1739228284225,3.2078,2655.7,2655.2,0.00564355]
[1739228291333,0.5578,2655.6,2655.2,0.60384355]
[1739228291533,0.5578,2655.6,2655.3,0.5933]
[1739228304131,1.31081,2655.6,2655.2,0.00564355]
[1739228304326,4.9871101,2655.5,2655.2,0.00564355]
[1739228304637,3.7678,2655.4,2655.2,0.00564355]
[1739228304836,4.3176,2655.4,2655.2,0.00564355]
[1739228309834,3.7678,2655.4,2655.2,0.00564355]
[1739228312748,0.56,2655.4,2655.2,0.00564355]
[1739228313044,0.5578,2655.6,2655.2,3.21344355]
[1739228313542,3.2078,2655.7,2655.2,3.21344355]
[1739228313945,0.5777,2656.0,2655.2,3.21344355]
[1739228314149,0.5777,2656.0,2655.5,3.2078]
[1739228314349,0.00564355,2656.3,2655.6,1.7638]
[1739228317444,0.00564355,2656.3,2655.7,1.616]
[1739228317638,0.00564355,2656.3,2656.0,3.2078]
[1739228317838,0.00564355,2656.3,2656.1,1.7293]
[1739228318044,0.00564355,2656.3,2656.2,0.03382904]
[1739228318446,0.6071,2656.9,2656.2,0.03382904]
[1739228318447,3.2078,2657.1,2656.2,0.03382904]
[1739228318943,1.1743,2657.0,2656.2,0.03382904]
[1739228319145,1.1743,2657.0,2656.6,0.03382904]
[1739228319952,1.1743,2657.0,2656.6,0.59722904]
[1739228320154,1.1743,2657.0,2656.8,0.03382904]
[1739228321055,1.1743,2657.0,2656.9,0.03382904]
[1739228328463,1.1743,2657.0,2656.9,0.06419303]
[1739228333782,3.21344355,2657.1,2656.9,0.06419303]
[1739228334186,3.21344355,2657.1,2657.0,0.5579]
[1739228334387,0.00564355,2657.1,2657.0,0.5579]
[1739228334585,0.00564355,2657.1,2657.0,0.62209303]
[1739228336585,3.2078,2657.6,2657.0,0.62209303]
[1739228336980,3.2078,2657.6,2657.1,0.5786]
[1739228337182,3.2078,2658.0,2657.2,3.8034]
[1739228337486,0.6075,2658.0,2657.6,0.06419303]
[1739228337680,0.6075,2658.0,2657.7,0.5566]
[1739228337879,0.00564355,2657.9,2657.7,0.5566]
[1739228338282,0.00564355,2657.9,2657.8,3.2078]
[1739228338479,1.1582,2658.5,2657.8,3.27199303]
[1739228338783,3.2078,2659.0,2657.9,3.2078]
[1739228338985,4.366,2659.0,2658.2,3.2078]
[1739228339181,8.46980528,2659.0,2658.5,3.2078]
[1739228339384,4.366,2659.0,2658.5,3.2078]
[1739228339680,4.37164355,2659.0,2658.7,0.06419303]
[1739228340582,4.37164355,2659.0,2658.8,0.06419303]
[1739228341684,4.37164355,2659.0,2658.9,0.06419303]
[1739228347484,1.16384355,2659.0,2658.9,0.06419303]
[1739228347990,4.37164355,2659.0,2658.9,0.06419303]
[1739228351981,3.21344355,2659.0,2658.9,0.06419303]
[1739228357081,0.00564355,2659.0,2658.9,0.06419303]
[1739228357684,0.00564355,2659.0,2658.9,0.66549303]
[1739228357987,1.87932,2660.2,2658.9,0.66549303]
[1739228357988,3.7668,2659.9,2658.9,9.87329303]
[1739228358189,3.7668,2659.9,2658.9,3.87329303]
[1739228358784,3.2078,2660.0,2659.4,0.06419303]
[1739228359088,1.617,2660.7,2659.5,3.8047]
[1739228359089,3.2078,2660.4,2659.5,3.8047]
[1739228359282,0.00372671,2660.0,2659.5,3.8047]
[1739228359683,0.00372671,2660.0,2659.7,0.06419303]
[1739228360682,0.00372671,2660.0,2659.8,0.06419303]
[1739228361780,0.00372671,2660.0,2659.9,0.06419303]
[1739228363485,3.8045,2661.0,2659.9,0.06419303]
[1739228363678,1.1473,2660.9,2660.1,3.2078]
[1739228363884,1.1473,2660.9,2660.4,0.06419303]
[1739228364084,1.1473,2660.9,2660.5,0.5959]
[1739228364885,1.1473,2660.9,2660.7,0.06419303]
[1739228365190,3.2078,2662.4,2660.8,4.8398]
[1739228365490,1.7339,2662.3,2661.3,3.2078]
[1739228365684,1.7339,2662.3,2661.3,3.21344355]
[1739228365885,1.7339,2662.3,2661.8,0.06419303]
[1739228366886,3.2078,2662.4,2662.0,0.06419303]
[1739228367988,3.2078,2662.4,2662.2,0.06419303]
[1739228368193,0.5611,2662.6,2662.2,0.06419303]
[1739228368895,0.5611,2662.6,2662.4,0.06419303]
[1739228369988,0.5611,2662.6,2662.5,0.06419303]
[1739228370188,3.2078,2662.9,2662.5,0.06419303]
[1739228370500,4.18546734,2662.6,2662.5,0.06419303]
[1739228370888,3.2078,2662.9,2662.5,0.06419303]
[1739228371399,4.18546734,2662.8,2662.5,0.06419303]
[1739228371693,3.2078,2662.6,2662.5,0.06419303]
[1739228372197,13.2421327,2662.6,2662.5,0.06419303]
[1739228372387,13.9931627,2662.6,2662.5,0.06419303]
[1739228372789,13.9931627,2662.6,2661.6,3.2078]
[1739228372790,13.2421327,2662.6,2661.6,3.2078]
[1739228372996,3.2078,2662.1,2661.6,3.2078]
[1739228375890,3.2078,2661.8,2661.2,3.2078]
[1739228376096,3.2078,2661.8,2661.1,1.644]
[1739228376601,3.8104,2661.8,2661.1,1.644]
[1739228376801,3.2078,2661.4,2660.9,1.1549]
[1739228377005,4.34096442,2661.7,2661.2,3.2078]
[1739228377199,3.2078,2662.0,2661.2,3.2078]
[1739228377397,3.2078,2662.0,2661.5,3.2078]
[1739228377697,3.2078,2662.0,2661.6,0.5582]
[1739228378296,0.5518,2662.3,2661.7,0.576]
[1739228379300,0.6022,2662.6,2661.8,3.2078]
[1739228381906,3.2078,2662.4,2661.8,3.2078]
[1739228382107,3.2078,2662.4,2661.5,3.2078]
[1739228382411,3.2078,2662.0,2661.3,1.65664355]
[1739228383310,3.2078,2662.0,2661.5,3.2078]
[1739228383705,4.15738845,2661.9,2661.3,0.00564355]
[1739228384209,3.2078,2661.7,2661.3,0.00564355]
[1739228384507,3.2078,2661.4,2661.3,0.00564355]
[1739228384803,3.95917,2661.4,2661.3,0.00564355]
[1739228385004,8.11729478,2661.4,2661.3,0.00564355]
[1739228385208,7.36592478,2661.4,2661.3,0.00564355]
[1739228385401,8.11729478,2661.4,2661.3,0.00564355]
[1739228387007,7.36592478,2661.4,2661.3,0.00564355]
[1739228387805,8.11729478,2661.4,2661.3,0.00564355]
[1739228388004,7.36592478,2661.4,2661.3,0.00564355]
[1739228388207,8.11729478,2661.4,2661.3,0.00564355]
[1739228388408,14.11729478,2661.4,2661.3,0.00564355]
[1739228388706,15.09094995,2661.4,2659.9,4.8688]
[1739228388914,3.2078,2661.1,2660.3,0.6034]
[1739228389409,3.2078,2661.1,2659.8,0.5747]
[1739228389410,3.2078,2660.7,2659.8,3.7825]
[1739228389602,0.5724,2660.6,2659.8,1.1781]
[1739228389808,3.2078,2660.2,2660.0,0.00564355]
[1739228390105,0.75727355,2660.5,2660.0,0.00564355]
[1739228390604,4.33461612,2660.4,2660.0,0.00564355]
[1739228390813,3.2078,2660.1,2660.0,0.00564355]
[1739228391204,7.25480032,2660.1,2660.0,0.00564355]
[1739228391407,14.57523032,2660.1,2660.0,0.00564355]
[1739228391710,14.57523032,2660.1,2659.2,1.1939]
[1739228391901,3.2078,2659.7,2659.2,0.6034]
[1739228392307,4.0297903,2659.6,2659.2,0.6034]
[1739228392713,3.2078,2659.5,2659.1,1.665]
[1739228392907,3.2078,2659.5,2659.1,0.00564355]
[1739228393711,3.2078,2659.2,2659.1,0.00564355]
[1739228395516,3.2078,2659.6,2659.1,0.00564355]
[1739228396012,3.94258295,2659.5,2659.1,0.00564355]
[1739228396221,3.2078,2659.9,2659.1,0.00564355]
[1739228396515,3.94258295,2659.9,2659.2,3.2078]
[1739228396715,0.5687,2660.1,2659.3,0.6093]
[1739228397113,4.05385644,2660.0,2659.3,0.6093]
[1739228397314,4.05385644,2660.0,2659.3,1.1761]
[1739228398720,3.2078,2659.9,2659.3,1.1761]
[1739228399022,0.5687,2660.1,2659.3,1.1761]
[1739228399523,4.23967995,2660.0,2659.3,1.1761]
[1739228401222,3.2078,2659.9,2659.1,0.00564355]
[1739228401418,3.2078,2659.2,2659.1,0.00564355]
[1739228402216,14.43277832,2659.2,2659.1,0.00564355]
[1739228402518,0.75218,2658.6,2657.8,3.2078]
[1739228402722,0.75208,2658.9,2657.6,2.8512]
[1739228402922,3.2078,2658.4,2657.6,2.8512]
[1739228403122,3.2078,2658.3,2657.7,3.2078]
[1739228403326,3.2078,2658.4,2657.7,3.2078]
[1739228403521,0.00564355,2658.3,2657.7,0.00564355]
[1739228403729,0.00564355,2658.3,2657.7,3.21344355]
[1739228405518,3.2078,2658.8,2657.7,3.21344355]
[1739228405519,3.2078,2658.8,2658.0,3.2078]
[1739228405723,3.2078,2658.8,2658.1,0.5708]
[1739228405919,3.2078,2659.6,2658.7,3.2078]
[1739228406121,3.2078,2659.6,2658.8,0.5621]
[1739228406321,7.24853983,2659.6,2658.8,0.5621]
[1739228406718,0.00564355,2659.5,2658.8,0.5621]
[1739228408823,0.00564355,2659.5,2658.9,0.5816]
[1739228410024,0.00564355,2659.5,2659.0,3.2078]
[1739228410627,3.2078,2660.0,2659.3,3.2078]
[1739228411128,3.2078,2660.3,2659.6,3.2078]
[1739228411320,3.2078,2660.3,2659.7,0.5803]
[1739228411516,3.2078,2660.3,2659.7,1.1736]
[1739228411722,3.21344355,2660.3,2659.7,1.17924355]
[1739228411923,0.00564355,2660.3,2659.9,3.2078]
[1739228413629,0.00564355,2660.3,2660.0,0.5664]
[1739228414831,0.00564355,2660.3,2659.8,1.691]
[1739228415026,3.2078,2660.1,2659.8,1.691]
[1739228415223,3.2078,2660.1,2659.7,0.58594355]
[1739228415728,3.2078,2659.8,2659.7,0.00564355]
[1739228416033,3.2078,2659.8,2659.0,0.5498]
[1739228416228,3.2078,2659.8,2658.9,0.5664]
[1739228416229,3.2078,2659.1,2658.9,0.5664]
[1739228416531,3.2078,2659.1,2658.4,3.2078]
[1739228417427,0.00564355,2659.0,2658.5,0.00564355]
[1739228418226,3.2078,2658.8,2658.5,0.00564355]
[1739228418622,4.23663838,2658.7,2658.5,0.00564355]
[1739228418826,0.5556,2658.6,2657.4,1.7]
[1739228419032,3.2078,2658.4,2657.2,4.9088]
[1739228419625,3.2078,2657.9,2657.2,4.9088]
[1739228419930,3.2078,2657.9,2657.3,0.00564355]
[1739228421028,4.28605116,2657.8,2657.3,0.00564355]
[1739228421533,7.49385116,2657.8,2657.3,0.00564355]
[1739228421827,3.2078,2657.5,2657.3,0.00564355]
[1739228422031,8.07675116,2657.8,2657.3,0.00564355]
[1739228422237,3.7907,2657.8,2657.3,0.00564355]
[1739228422433,0.00564355,2657.7,2657.3,0.00564355]
[1739228423143,3.2078,2657.5,2657.3,0.00564355]
[1739228430137,0.00564355,2657.7,2657.3,0.00564355]
[1739228430336,0.00564355,2657.7,2657.3,40.80564355]
[1739228430745,0.00564355,2657.7,2657.3,0.00564355]
[1739228431445,0.00564355,2657.7,2657.3,0.59464355]
[1739228431739,0.00564355,2657.7,2657.5,3.2078]
[1739228431943,0.00564355,2657.7,2657.6,0.5938]
[1739228436149,3.2078,2658.4,2657.6,6.5938]
[1739228436451,3.2078,2658.7,2657.8,3.2078]
[1739228437551,0.00564355,2658.5,2657.8,3.2078]
[1739228438149,0.00564355,2658.5,2658.1,3.2078]
[1739228439049,3.2078,2659.1,2658.4,3.2078]
[1739228439255,0.5969,2659.5,2658.5,0.5976]
[1739228440151,3.2078,2659.0,2658.5,0.5976]
[1739228440348,0.00564355,2659.3,2658.7,0.00564355]
[1739228443450,0.00564355,2659.3,2658.9,3.2078]
[1739228444348,1.1418,2660.3,2658.9,3.2078]
[1739228444349,3.2078,2659.9,2658.9,3.2078]
[1739228444553,3.2078,2660.2,2658.9,3.2078]
[1739228444755,4.20228796,2660.0,2658.9,3.2078]
[1739228444948,3.2078,2660.2,2658.9,3.2078]
[1739228445149,3.2078,2660.2,2659.2,3.2078]
[1739228445354,3.2078,2660.2,2659.5,3.2078]
[1739228445747,3.2078,2660.2,2659.8,3.2078]
[1739228446650,3.2078,2661.0,2659.8,3.2078]
[1739228447246,3.2078,2661.0,2660.1,0.00564355]
[1739228449351,3.99706535,2660.9,2660.1,0.00564355]
[1739228449859,3.2078,2660.7,2660.1,0.00564355]
[1739228450054,3.2078,2660.4,2660.1,0.00564355]
[1739228450955,3.95947,2660.4,2660.1,0.00564355]
[1739228451160,5.39787094,2660.3,2659.3,0.5722]
[1739228451349,3.2078,2659.5,2659.0,0.5636]
[1739228451653,3.2078,2659.5,2658.9,4.9128]
[1739228451859,3.2078,2659.2,2658.9,1.705]
[1739228452057,3.2078,2659.2,2658.5,21.1148]
[1739228452450,0.00564355,2659.1,2658.6,0.00564355]
[1739228453458,3.2078,2658.9,2658.6,0.00564355]
[1739228454260,3.9706566,2658.8,2657.7,3.8138]
[1739228454564,3.2078,2658.6,2657.7,3.8138]
[1739228455567,3.2078,2658.6,2657.9,0.00564355]
[1739228456467,3.2078,2658.3,2657.9,0.00564355]
[1739228458069,3.2078,2658.0,2657.9,0.00564355]
[1739228458268,3.2078,2658.4,2657.9,0.00564355]
[1739228459970,3.2078,2658.1,2657.9,0.00564355]
[1739228461570,0.6099,2658.0,2657.9,0.00564355]
[1739228463772,3.8177,2658.0,2657.9,0.00564355]
[1739228464677,0.6099,2658.0,2657.9,0.00564355]
[1739228464871,3.2078,2658.3,2657.9,0.00564355]
[1739228468874,3.2078,2658.0,2657.9,0.00564355]
[1739228469069,3.2078,2658.0,2657.2,3.2078]
[1739228469270,4.36112122,2658.2,2657.2,3.2078]
[1739228469271,3.2078,2657.7,2657.2,3.2078]
[1739228470283,3.21344355,2657.7,2657.2,0.00564355]
[1739228470680,3.2078,2657.6,2657.2,0.00564355]
[1739228470880,7.31626035,2657.6,2657.2,0.00564355]
[1739228471081,3.2078,2657.3,2657.2,0.00564355]
[1739228471881,7.16460627,2657.3,2656.4,3.7653]
[1739228472287,0.5916,2657.2,2656.4,3.7653]
[1739228473288,0.5916,2657.2,2656.5,0.00564355]
[1739228474480,7.16460627,2657.3,2656.5,0.00564355]
[1739228474681,3.2078,2657.6,2657.0,3.2078]
[1739228474881,0.00564355,2657.7,2657.0,3.2078]
[1739228475081,0.00564355,2657.7,2657.1,40.8]
[1739228475487,0.00564355,2657.7,2657.2,0.568]
[1739228475788,0.00564355,2657.7,2657.3,3.2078]
[1739228476793,0.00564355,2657.7,2657.2,0.568]
[1739228476986,3.21344355,2657.7,2656.9,1.709]
[1739228477284,3.2078,2657.4,2656.6,1.1666]
[1739228480283,3.21344355,2657.7,2656.6,1.1666]
[1739228480487,3.2078,2657.4,2656.6,1.1666]
[1739228480887,3.21344355,2657.7,2656.6,1.1666]
[1739228481395,3.2078,2657.4,2656.6,1.1666]
[1739228481588,0.00564355,2657.7,2656.6,1.1666]
[1739228481790,3.2078,2657.5,2656.6,1.1666]
[1739228481986,3.2078,2657.2,2656.6,1.1666]
[1739228483898,3.2078,2657.2,2656.5,0.00564355]
[1739228484091,0.00564355,2657.7,2656.5,0.00564355]
[1739228484092,3.2078,2656.8,2656.5,0.00564355]
[1739228488900,3.2078,2657.3,2656.5,0.00564355]
[1739228489099,3.2078,2657.3,2656.5,3.21344355]
[1739228489299,3.2078,2657.3,2656.6,2.2552]
[1739228489497,0.00564355,2657.7,2656.8,3.2078]
[1739228489697,0.00564355,2657.7,2656.9,0.6029]
[1739228490598,0.00564355,2657.7,2656.9,1.35553]
[1739228490798,0.00564355,2657.7,2657.1,3.2078]
[1739228491304,0.00564355,2657.7,2657.4,3.2078]
[1739228491507,0.00564355,2657.7,2657.5,0.5512]
[1739228493293,0.00564355,2657.7,2656.9,0.6029]
[1739228493294,0.00564355,2657.7,2657.1,3.2078]
[1739228493501,0.00564355,2657.7,2657.3,1.707]
[1739228496000,3.2078,2658.5,2657.6,3.2078]
[1739228496194,4.3783,2658.8,2657.7,3.2078]
[1739228496396,3.7735,2658.8,2658.0,3.2078]
[1739228496593,3.2078,2659.2,2658.4,0.75221]
[1739228496804,0.6082,2659.6,2658.4,3.2078]
[1739228496805,4.3783,2659.5,2658.4,3.2078]
[1739228496991,8.43306474,2659.5,2658.4,3.2078]
[1739228497194,3.7735,2659.5,2658.7,0.00564355]
[1739228497399,0.00564355,2659.2,2658.7,3.21344355]
[1739228497604,0.00564355,2659.2,2658.8,0.5962]
[1739228499198,0.00564355,2659.2,2658.9,0.5847]
[1739228500101,0.00564355,2659.2,2658.7,4.92644355]
[1739228500102,0.00564355,2659.2,2658.7,1.71864355]
[1739228500303,3.2078,2659.1,2658.7,0.00564355]
[1739228502412,3.2078,2658.8,2658.7,0.00564355]
[1739228503408,3.2078,2659.1,2658.7,0.00564355]
[1739228503905,7.43645559,2659.1,2658.7,0.00564355]
[1739228504107,3.2078,2659.1,2658.7,0.00564355]
[1739228504811,0.00564355,2659.2,2658.7,0.00564355]
[1739228505605,0.00564355,2659.2,2658.9,3.2078]
[1739228505803,3.2078,2659.7,2659.0,0.59]
[1739228506204,1.1763,2660.1,2659.2,3.2078]
[1739228506397,1.1763,2660.1,2659.3,0.5756]
[1739228506603,0.5924,2660.1,2659.5,3.2078]
[1739228507001,0.59804355,2660.1,2659.3,0.5756]
[1739228507208,0.59804355,2660.1,2659.3,3.7834]
[1739228507411,0.00564355,2660.1,2659.6,3.2078]
[1739228507608,0.00564355,2660.1,2659.3,3.7834]
[1739228507810,0.00564355,2660.1,2659.6,3.2078]
[1739228508507,0.00564355,2660.1,2659.9,3.2078]
[1739228508730,0.00564355,2660.1,2659.6,3.2078]
[1739228509609,0.00564355,2660.1,2659.9,3.2078]
[1739228510213,0.00564355,2660.1,2659.8,3.2078]
[1739228513910,0.00564355,2660.1,2659.9,0.5717]
[1739228514109,2.94,2660.8,2659.9,0.5717]
[1739228514311,16.00985559,2661.3,2660.4,3.2078]
[1739228515210,0.00564355,2661.1,2660.6,0.00564355]
[1739228517602,0.00564355,2661.1,2660.6,0.60644355]
[1739228518715,3.2078,2660.9,2660.6,0.00564355]
[1739228519015,0.75156,2660.7,2660.6,0.00564355]
[1739228519713,0.75155,2660.8,2660.6,0.00564355]
[1739228519915,0.75163,2660.5,2659.7,3.2078]
[1739228520113,3.95943,2660.5,2659.7,3.2078]
[1739228520316,3.2078,2660.5,2659.7,3.2078]
[1739228520812,3.2078,2659.8,2659.1,17.901]
[1739228521412,0.00564355,2659.7,2659.2,0.00564355]
[1739228521612,3.2078,2659.5,2659.2,0.00564355]
[1739228521805,0.75194,2659.4,2659.2,0.00564355]
[1739228522007,0.6068,2659.6,2659.2,0.00564355]
[1739228522410,0.00564355,2659.7,2659.2,0.00564355]
[1739228523008,3.2078,2659.6,2659.2,0.00564355]
[1739228523422,3.2078,2659.3,2659.2,0.00564355]
[1739228524123,3.95976,2659.3,2659.2,0.00564355]
[1739228524321,3.95976,2659.3,2658.4,1.719]
[1739228524520,3.2078,2659.1,2658.2,0.5823]
[1739228524822,3.2078,2658.8,2658.2,0.5823]
[1739228525019,3.2078,2658.8,2658.0,40.8]
[1739228525417,3.2078,2658.8,2657.9,5.4977]
[1739228525625,3.2078,2658.8,2658.1,0.00564355]
[1739228526523,3.2078,2659.3,2658.1,0.00564355]
[1739228526720,1.1587,2659.5,2658.2,3.2078]
[1739228527324,1.1587,2659.5,2658.5,3.2078]
[1739228527520,1.1587,2659.5,2658.6,1.1259]
[1739228527721,3.2078,2659.3,2658.6,1.1259]
[1739228528021,3.2078,2659.0,2658.2,3.2078]
[1739228528319,3.2078,2659.0,2658.2,4.3803]
[1739228531328,3.2078,2659.6,2658.8,3.2078]
[1739228531524,3.2078,2659.6,2658.9,0.5586]
[1739228531723,3.2078,2659.6,2659.0,0.5784]
[1739228534926,0.00564355,2659.7,2659.0,0.5784]
[1739228535129,0.00564355,2659.7,2659.4,3.2078]
[1739228535330,3.2078,2660.6,2659.6,0.75187]
[1739228535625,3.2078,2661.2,2660.4,3.2078]
[1739228535828,3.2078,2661.2,2660.0,3.2078]
[1739228536030,3.2078,2661.1,2660.0,3.2078]
[1739228536430,0.00564355,2660.8,2660.3,0.00564355]
[1739228536631,0.00564355,2660.8,2660.3,3.21344355]
[1739228537030,3.2078,2660.4,2660.3,0.00564355]
[1739228537739,3.2078,2660.7,2660.3,0.00564355]
[1739228538030,7.48679832,2660.7,2660.3,0.00564355]
[1739228538435,3.2078,2660.4,2660.3,0.00220046]
[1739228539732,3.2078,2660.7,2660.3,0.00220046]
[1739228540634,3.2078,2660.6,2660.3,0.00220046]
[1739228541029,0.75165,2660.4,2660.3,0.00220046]
[1739228541233,4.78762319,2660.5,2659.7,1.725]
[1739228541234,0.75169,2660.3,2659.7,1.725]
[1739228541434,3.2078,2660.2,2659.5,0.5627]
[1739228541834,3.2078,2659.9,2659.2,4.9318]
[1739228542135,3.2078,2659.9,2659.2,1.724]
[1739228542432,3.2078,2659.9,2659.3,0.00564355]
[1739228542837,0.6058,2660.5,2659.4,3.2078]
[1739228543038,3.2078,2660.9,2659.7,3.2078]
[1739228543236,3.2078,2660.9,2659.8,0.5506]
[1739228544433,3.2078,2660.5,2659.8,0.5506]
[1739228545639,0.00564355,2660.8,2659.9,1.727]
[1739228545828,0.00564355,2660.8,2660.0,3.2078]
[1739228546026,0.00564355,2660.8,2660.1,0.5529]
[1739228546732,3.2078,2660.6,2660.1,0.5529]
[1739228546930,3.2078,2660.3,2659.8,0.5506]
[1739228548131,3.2078,2660.3,2659.4,0.56]
[1739228548132,3.2078,2660.0,2659.4,0.56]
[1739228548439,3.2078,2660.3,2659.4,0.56]
[1739228549636,0.00564355,2660.8,2659.9,3.2078]
[1739228549933,0.00564355,2660.8,2660.0,2.3287]
[1739228551138,0.00564355,2660.8,2659.6,1.737]
[1739228551139,3.95946,2660.4,2659.6,1.737]
[1739228551433,1.1383,2660.3,2659.6,1.737]
[1739228551935,3.2078,2659.8,2659.4,3.8005]
[1739228552140,3.2078,2659.8,2659.4,0.5927]
[1739228555342,3.2078,2659.8,2659.3,0.00564355]
[1739228555643,3.2078,2659.5,2659.3,0.00564355]
[1739228556541,3.7884,2659.5,2659.3,0.00564355]
[1739228558341,0.75193,2659.4,2659.3,0.00564355]
[1739228558535,4.26288929,2659.4,2658.3,21.1048]
[1739228558739,3.2078,2658.8,2658.3,17.897]
[1739228559044,3.2078,2658.8,2658.1,1.1371]
[1739228559045,0.75214,2658.7,2658.1,1.1371]
[1739228559240,3.2078,2658.5,2658.1,1.1371]
[1739228559938,3.96001,2658.5,2658.0,0.00564355]
[1739228560144,3.2078,2658.5,2658.0,0.00564355]
[1739228560445,4.67685306,2658.4,2658.0,0.00564355]
[1739228560648,3.92462306,2658.4,2658.0,0.00564355]
[1739228560949,3.2078,2658.2,2657.3,3.2078]
[1739228561149,3.2078,2658.1,2657.3,3.2078]
[1739228561346,7.23855155,2658.1,2657.3,3.2078]
[1739228561841,3.2078,2658.1,2657.3,3.2078]
[1739228562042,3.2078,2658.1,2657.6,3.2078]
[1739228562241,3.2078,2658.1,2657.7,1.1521]
[1739228562942,3.2078,2658.2,2657.7,1.1521]
[1739228563145,0.00564355,2658.6,2657.9,3.2078]
[1739228563644,0.00564355,2658.6,2658.3,3.2078]
[1739228563947,0.00564355,2658.6,2658.4,0.5833]
[1739228564141,3.2078,2659.2,2658.4,0.5833]
[1739228564142,3.2078,2659.2,2658.5,0.5537]
[1739228564748,1.2019,2659.4,2658.5,0.5537]
[1739228564951,3.2078,2659.3,2658.5,0.5537]
[1739228565244,1.2019,2659.4,2658.6,3.2078]
[1739228565449,0.00564355,2659.2,2658.6,3.2078]
[1739228565845,0.00564355,2659.2,2658.6,3.21344355]
[1739228566450,3.2078,2659.7,2658.9,3.2078]
[1739228566654,3.2078,2659.7,2659.2,3.2078]
[1739228566845,3.2078,2660.2,2659.2,44.0078]
[1739228567050,3.2078,2660.2,2659.2,3.2078]
[1739228567252,3.96444369,2660.4,2659.3,0.5835]
[1739228567554,4.3374,2660.5,2659.3,0.5835]
[1739228567555,0.00564355,2660.1,2659.3,0.5835]
[1739228567758,0.00564355,2660.1,2659.6,3.2078]
[1739228568254,4.32459521,2660.0,2659.3,0.5835]
[1739228568552,4.32459521,2660.0,2659.4,3.2078]
[1739228568855,4.32459521,2660.0,2659.3,0.5835]
[1739228569456,0.00564355,2660.1,2659.6,3.2078]
[1739228569951,0.00564355,2660.1,2659.7,1.754]
[1739228571561,3.2078,2660.0,2659.7,1.754]
[1739228571851,0.00564355,2660.1,2659.7,1.754]
[1739228572252,0.00564355,2660.1,2659.4,0.5978]
[1739228572457,3.2078,2659.9,2659.4,0.5978]
[1739228573458,3.2078,2659.9,2659.3,0.5835]
[1739228573857,3.2078,2659.5,2658.8,0.5836]
[1739228574062,3.2078,2659.5,2658.8,1.1387]
[1739228576866,3.2078,2659.2,2658.8,1.1387]
[1739228578673,3.2078,2658.9,2658.6,0.00564355]
[1739228578857,3.2078,2659.3,2658.6,3.21344355]
[1739228579170,3.98720143,2659.2,2658.6,3.21344355]
[1739228579670,3.2078,2659.3,2658.7,0.5514]
[1739228580356,3.2078,2659.3,2658.8,40.8]
[1739228580560,3.2078,2659.3,2658.9,0.6072]
[1739228580761,3.2078,2659.7,2658.9,0.6072]
[1739228580966,3.21344355,2660.1,2658.9,3.815]
[1739228581166,3.21344355,2660.1,2659.0,40.8]
[1739228581969,3.21344355,2660.1,2659.2,3.2078]
[1739228582165,3.21344355,2660.1,2659.3,1.755]
[1739228582465,3.21344355,2660.1,2659.3,2.3566]
[1739228582965,3.21344355,2660.1,2659.3,5.5644]
[1739228583170,3.21344355,2660.1,2659.3,2.3566]
[1739228583367,3.21344355,2660.1,2659.3,5.5644]
[1739228583563,3.21344355,2660.1,2659.3,2.3566]
[1739228583768,3.2078,2659.8,2659.0,44.0078]
[1739228583973,3.2078,2659.8,2658.9,0.6072]
[1739228584877,0.00564355,2660.1,2659.0,3.2078]
[1739228585780,0.00564355,2660.1,2659.3,3.2078]
[1739228586074,0.00564355,2660.1,2659.4,0.5964]
[1739228586776,3.2078,2659.9,2659.4,0.5964]
[1739228587274,3.2078,2659.9,2659.3,3.2078]
[1739228587473,3.2078,2659.6,2658.9,3.815]
[1739228587672,0.5541,2659.5,2658.9,3.815]
[1739228587970,3.2078,2659.3,2658.9,3.2078]
[1739228588373,3.2078,2659.3,2658.6,0.00564355]
[1739228588577,7.49772389,2659.2,2658.6,0.00564355]
[1739228588880,3.2078,2659.2,2658.6,0.00564355]
[1739228589379,4.10616767,2659.1,2658.6,0.00564355]
[1739228589777,3.2078,2659.2,2658.6,0.00564355]
[1739228592580,3.2078,2658.8,2658.6,0.00564355]
[1739228592777,0.5775,2658.7,2658.6,0.00564355]
[1739228593182,4.12125318,2659.3,2658.6,0.00564355]
[1739228593183,3.2078,2659.1,2658.6,0.00564355]
[1739228593882,0.6034,2659.2,2658.6,0.00564355]
[1739228594081,3.2078,2659.1,2658.6,0.00564355]
[1739228595681,3.2078,2659.7,2658.6,0.00564355]
[1739228595982,0.75183,2659.8,2658.6,1.17004355]
[1739228596183,6.09474641,2659.9,2658.6,1.17004355]
[1739228596483,1.9279,2659.9,2658.7,40.8]
[1739228596682,3.2078,2659.6,2658.8,3.2078]
[1739228596877,3.2078,2659.5,2658.8,3.2078]
[1739228597284,3.2078,2659.5,2658.6,1.17004355]
[1739228597481,3.2078,2659.5,2658.6,41.97004355]
[1739228597684,8.06725241,2659.4,2658.6,3.80034355]
[1739228598082,3.7733,2659.4,2658.6,0.59254355]
[1739228600983,3.2078,2659.1,2658.6,0.00564355]
[1739228601191,0.5899,2659.0,2658.6,0.00564355]
[1739228601395,3.2078,2658.7,2658.6,0.00564355]
[1739228601577,3.2078,2658.9,2658.6,0.00564355]
[1739228601983,0.75213,2658.7,2658.6,0.00564355]
[1739228602184,0.75213,2658.7,2657.9,0.5537]
[1739228602185,0.75223,2658.4,2657.7,3.2078]
[1739228602386,0.5767,2658.3,2657.7,3.2078]
[1739228602681,0.5767,2658.3,2657.5,19.659]
[1739228602990,3.29928725,2657.9,2657.3,3.2078]
[1739228603491,3.3049308,2657.9,2657.3,3.21344355]
[1739228603891,3.3049308,2657.9,2657.3,0.00564355]
[1739228603892,4.28294485,2657.8,2657.3,0.00564355]
[1739228604085,3.29928725,2657.6,2657.3,0.00564355]
[1739228604290,0.5767,2657.5,2657.3,0.00564355]
[1739228604489,5.5185077,2657.5,2657.3,0.00564355]
[1739228605085,0.09148725,2657.4,2657.3,0.00564355]